fUSD/lending_fUSD_20241206
["ID","MTS","AMOUNT","RATE_DAILY","PERIOD"]
[344426404,1733454642886,-818.53213025,7.693e-05,2]
[344426405,1733454642896,-2128.11174604,7.693e-05,2]
[344426406,1733454642906,-2177.08196735,7.693e-05,2]
[344426407,1733454642916,-229.10488379,7.693e-05,2]
[344426408,1733454642926,-965.44609464,7.694e-05,2]
[344426409,1733454642936,-543.06342824,7.694e-05,2]
[344426410,1733454642945,-2873.78082304,7.694e-05,2]
[344426411,1733454642956,-200.0,7.694e-05,2]
[344426412,1733454642966,-1197.06285715,7.694e-05,2]
[344426413,1733454642976,-378.75816964,7.694e-05,2]
[344426414,1733454642985,-213.05147043,7.694e-05,2]
[344426415,1733454642995,-407.29757118,7.694e-05,2]
[344426416,1733454643005,-213.05147043,7.694e-05,2]
[344426417,1733454643014,-28705.39552184,7.694e-05,2]
[344426418,1733454643024,-2288.46481692,7.694e-05,2]
[344426419,1733454643033,-2128.11174604,7.694e-05,2]
[344426420,1733454643043,-9082.56655183,7.694e-05,2]
[344426421,1733454643053,-673.34785714,7.695e-05,2]
[344426422,1733454643062,-688.84234123,7.695e-05,2]
[344426423,1733454643072,-1716.34861269,7.695e-05,2]
[344426424,1733454643082,-200.0,7.695e-05,2]
[344426425,1733454643091,-1716.34861269,7.695e-05,2]
[344426426,1733454643100,-305.47317838,7.695e-05,2]
[344426427,1733454643110,-3051.28642257,7.695e-05,2]
[344426428,1733454643120,-1632.81147551,7.695e-05,2]
[344426429,1733454643130,-673.34785714,7.695e-05,2]
[344426430,1733454643140,-5424.50919568,7.695e-05,2]
[344426431,1733454643149,-12110.08873578,7.695e-05,2]
[344426432,1733454643158,-918.45645498,7.695e-05,2]
[344426433,1733454643168,-918.45645498,7.695e-05,2]
[344426434,1733454643179,-200.0,7.696e-05,2]
[344426435,1733454643188,-460.42432326,7.696e-05,2]
[344426436,1733454643199,-965.44609464,7.696e-05,2]
[344426437,1733454643209,-1224.60860664,7.696e-05,2]
[344426438,1733454643219,-200.0,7.696e-05,2]
[344426439,1733454643228,-200.0,7.696e-05,2]
[344426440,1733454643238,-200.0,7.696e-05,2]
[344426441,1733454643248,-2177.08196735,7.696e-05,2]
[344426442,1733454643258,-3831.70776405,7.696e-05,2]
[344426443,1733454643268,-460.42432326,7.696e-05,2]
[344426444,1733454643278,-543.06342824,7.696e-05,2]
[344426445,1733454643287,-407.29757118,7.696e-05,2]
[344426446,1733454643297,-1197.06285715,7.696e-05,2]
[344426447,1733454643308,-200.0,7.696e-05,2]
[344426448,1733454643318,-9082.56655183,7.696e-05,2]
[344426449,1733454643327,-6811.92491387,7.697e-05,2]
[344426450,1733454643338,-2177.08196735,7.697e-05,2]
[344426452,1733454643347,-200.0,7.697e-05,2]
[344426454,1733454643357,-3831.70776405,7.697e-05,2]
[344426456,1733454643367,-2288.46481692,7.697e-05,2]
[344426458,1733454643376,-965.44609464,7.697e-05,2]
[344426460,1733454643386,-613.89909768,7.697e-05,2]
[344426462,1733454643396,-3051.28642257,7.697e-05,2]
[344426464,1733454643406,-1287.26145952,7.697e-05,2]
[344426466,1733454643417,-688.84234123,7.697e-05,2]
[344426468,1733454643426,-560.26,7.697e-05,2]
[344426470,1733454643436,-613.89909768,7.697e-05,2]
[344426472,1733454643447,-460.42432326,7.697e-05,2]
[344426474,1733454643457,-1716.34861269,7.697e-05,2]
[344426476,1733454643467,-407.29757118,7.697e-05,2]
[344426478,1733454643477,-200.0,7.697e-05,2]
[344426480,1733454643487,-543.06342824,7.697e-05,2]
[344426482,1733454643496,-1224.60860664,7.697e-05,2]
[344426483,1733454643506,-818.53213025,7.698e-05,2]
[344426484,1733454643516,-345.31824245,7.698e-05,2]
[344426485,1733454643526,-5108.94368541,7.698e-05,2]
[344426486,1733454643537,-200.0,7.698e-05,2]
[344426487,1733454643548,-229341.85308235,7.698e-05,2]
[344426488,1733454643558,-1596.08380953,7.698e-05,2]
[344426489,1733454643568,-1596.08380953,7.698e-05,2]
[344426490,1733454643578,-305.47317838,7.698e-05,2]
[344426491,1733454643588,-200.0,7.698e-05,2]
[344426492,1733454643598,-9082.56655183,7.698e-05,2]
[344426493,1733454643611,-200.0,7.699e-05,2]
[344426494,1733454643621,-460.42432326,7.699e-05,2]
[344426495,1733454643631,-2000.0,7.699e-05,2]
[344426496,1733454643641,-2000.0,7.699e-05,2]
[344426497,1733454643651,-255.0,7.699e-05,2]
[344426498,1733454643660,-420.0,7.699e-05,2]
[344426499,1733454643670,-284.06862723,7.699e-05,2]
[344426500,1733454643680,-965.44609464,7.699e-05,2]
[344426501,1733454643690,-200.0,7.699e-05,2]
[344426502,1733454643699,-200.0,7.699e-05,2]
[344426503,1733454643709,-200.0,7.699e-05,2]
[344426504,1733454643719,-229.10488379,7.699e-05,2]
[344426505,1733454643729,-200.0,7.7e-05,2]
[344426506,1733454643738,-21529.04664138,7.7e-05,2]
[344426507,1733454643748,-9082.56655183,7.7e-05,2]
[344426508,1733454643758,-918.45645498,7.7e-05,2]
[344426509,1733454643768,-378.75816964,7.7e-05,2]
[344426510,1733454643778,-407.29757118,7.7e-05,2]
[344426511,1733454643788,-28705.39552184,7.7e-05,2]
[344426512,1733454643798,-2177.08196735,7.7e-05,2]
[344426513,1733454643808,-200.0,7.7e-05,2]
[344426514,1733454643819,-200.0,7.7e-05,2]
[344426515,1733454643828,-500.0,7.71e-05,2]
[344426516,1733454643840,-500.0,7.71e-05,2]
[344426517,1733454643849,-500.0,7.71e-05,2]
[344426518,1733454643859,-649.78,7.71e-05,2]
[344426519,1733454643873,-500.0,7.71e-05,2]
[344426520,1733454643888,-500.0,7.71e-05,2]
[344426521,1733454643898,-500.0,7.71e-05,2]
[344426522,1733454643907,-502.9,7.71e-05,2]
[344426523,1733454643916,-302.87,7.767e-05,2]
[344426524,1733454643926,-500.0,7.8e-05,2]
[344426525,1733454643935,-420.43058247,7.847e-05,2]
[344426526,1733454643944,-373.36497245,7.888e-05,2]
[344426527,1733454643955,-800.0,7.9e-05,2]
[344426528,1733454643966,-10183.055947,7.945e-05,2]
[344426529,1733454643976,-33389.14947,7.945e-05,2]
[344426530,1733454643986,-420.43058247,7.98e-05,2]
[344426531,1733454643996,-3000.0,8e-05,2]
[344426532,1733454644006,-1522.11996757,8e-05,2]
[344426533,1733454644016,-1100.0,8e-05,2]
[344426534,1733454644029,-759.88,8e-05,2]
[344426535,1733454644039,-759.88,8e-05,2]
[344426536,1733454644048,-759.88,8e-05,2]
[344426537,1733454644058,-759.88,8e-05,2]
[344426538,1733454644068,-759.88,8e-05,2]
[344426539,1733454644077,-759.88,8e-05,2]
[344426540,1733454644087,-759.88,8e-05,2]
[344426541,1733454644096,-759.88,8e-05,2]
[344426542,1733454644106,-759.88,8e-05,2]
[344426543,1733454644204,-759.88,8e-05,2]
[344426544,1733454644215,-759.88,8e-05,2]
[344426545,1733454644224,-759.88,8e-05,2]
[344426546,1733454644234,-759.88,8e-05,2]
[344426547,1733454644243,-759.88,8e-05,2]
[344426548,1733454644253,-759.88,8e-05,2]
[344426549,1733454644262,-759.88,8e-05,2]
[344426550,1733454644271,-759.88,8e-05,2]
[344426551,1733454644280,-759.88,8e-05,2]
[344426552,1733454644290,-759.88,8e-05,2]
[344426553,1733454644299,-759.88,8e-05,2]
[344426554,1733454644309,-1000.0,8.021e-05,2]
[344426555,1733454644318,-433.53,8.035e-05,2]
[344426556,1733454644328,-150.0,8.104e-05,2]
[344426557,1733454644337,-302.87,8.137e-05,2]
[344426558,1733454644346,-210.11955398,8.154e-05,2]
[344426559,1733454644356,-1733.833587,8.178e-05,2]
[344426560,1733454644366,-150.0,8.201e-05,2]
[344426561,1733454644375,-150.25,8.219e-05,2]
[344426562,1733454644384,-14768.98,8.219e-05,2]
[344426563,1733454644393,-240.57,8.219e-05,2]
[344426564,1733454644402,-300.0,8.219e-05,2]
[344426565,1733454644412,-250.0,8.219e-05,2]
[344426566,1733454644421,-4236.44,8.219e-05,2]
[344426567,1733454644430,-1000.0,8.219e-05,2]
[344426568,1733454644439,-484.19,8.219e-05,2]
[344426569,1733454644450,-1139.27,8.219e-05,2]
[344426570,1733454644459,-150.0,8.242e-05,2]
[344426571,1733454644468,-383.85,8.267e-05,2]
[344426572,1733454644477,-1111.278,8.27e-05,2]
[344426573,1733454644486,-150.0,8.329e-05,2]
[344426574,1733454644495,-150.0,8.402e-05,2]
[344426575,1733454644505,-150.0,8.405e-05,2]
[344426576,1733454644514,-1500.0,8.405e-05,2]
[344426577,1733454644523,-150.0,8.41e-05,2]
[344426578,1733454644533,-150.0,8.413e-05,2]
[344426579,1733454644543,-1500.0,8.413e-05,2]
[344426580,1733454644553,-150.0,8.414e-05,2]
[344426581,1733454644562,-150.0,8.415e-05,2]
[344426582,1733454644571,-1500.0,8.416e-05,2]
[344426583,1733454644580,-1500.0,8.419e-05,2]
[344426584,1733454644589,-150.0,8.422e-05,2]
[344426585,1733454644599,-1500.0,8.422e-05,2]
[344426586,1733454644608,-150.0,8.423e-05,2]
[344426587,1733454644618,-150.0,8.424e-05,2]
[344426588,1733454644627,-150.0,8.424e-05,2]
[344426589,1733454644637,-300.0,8.425e-05,2]
[344426590,1733454644646,-150.0,8.427e-05,2]
[344426591,1733454644655,-150.0,8.428e-05,2]
[344426592,1733454644665,-150.0,8.428e-05,2]
[344426593,1733454644674,-1500.0,8.429e-05,2]
[344426594,1733454644684,-150.0,8.438e-05,2]
[344426595,1733454644693,-150.0,8.441e-05,2]
[344426596,1733454644705,-150.0,8.441e-05,2]
[344426597,1733454644714,-150.0,8.441e-05,2]
[344426598,1733454644725,-420.43058247,8.441e-05,2]
[344426599,1733454644734,-150.0,8.442e-05,2]
[344426600,1733454644743,-150.0,8.442e-05,2]
[344426601,1733454644752,-150.0,8.443e-05,2]
[344426602,1733454644761,-1500.0,8.444e-05,2]
[344426603,1733454644770,-150.0,8.444e-05,2]
[344426604,1733454644779,-150.0,8.446e-05,2]
[344426605,1733454644788,-150.0,8.447e-05,2]
[344426606,1733454644797,-1500.0,8.45e-05,2]
[344426607,1733454644806,-150.0,8.451e-05,2]
[344426608,1733454644815,-150.0,8.454e-05,2]
[344426609,1733454644823,-150.0,8.456e-05,2]
[344426610,1733454644832,-150.0,8.456e-05,2]
[344426611,1733454644841,-150.0,8.456e-05,2]
[344426612,1733454644850,-150.0,8.456e-05,2]
[344426613,1733454644859,-150.0,8.456e-05,2]
[344426614,1733454644870,-150.0,8.456e-05,2]
[344426615,1733454644879,-150.0,8.456e-05,2]
[344426616,1733454644888,-150.0,8.456e-05,2]
[344426617,1733454644897,-150.0,8.456e-05,2]
[344426618,1733454644907,-150.0,8.456e-05,2]
[344426619,1733454644916,-150.0,8.457e-05,2]
[344426620,1733454644924,-150.0,8.457e-05,2]
[344426621,1733454644933,-150.0,8.457e-05,2]
[344426622,1733454644942,-150.0,8.46e-05,2]
[344426623,1733454644957,-150.0,8.46e-05,2]
[344426624,1733454644967,-150.0,8.461e-05,2]
[344426625,1733454644977,-150.0,8.463e-05,2]
[344426626,1733454644986,-150.0,8.465e-05,2]
[344426627,1733454644995,-150.0,8.466e-05,2]
[344426628,1733454645005,-560.26,8.467e-05,2]
[344426629,1733454645014,-150.0,8.467e-05,2]
[344426630,1733454645024,-150.0,8.468e-05,2]
[344426631,1733454645033,-433.0,8.469e-05,2]
[344426632,1733454645043,-587.0,8.469e-05,2]
[344426633,1733454645051,-150.0,8.47e-05,2]
[344426634,1733454645061,-150.0,8.472e-05,2]
[344426635,1733454645070,-300.0,8.472e-05,2]
[344426636,1733454645079,-150.0,8.474e-05,2]
[344426637,1733454645088,-150.0,8.474e-05,2]
[344426638,1733454645097,-1500.0,8.475e-05,2]
[344426639,1733454645105,-1500.0,8.475e-05,2]
[344426640,1733454645114,-150.0,8.476e-05,2]
[344426641,1733454645123,-150.0,8.476e-05,2]
[344426642,1733454645132,-1500.0,8.477e-05,2]
[344426643,1733454645141,-150.0,8.478e-05,2]
[344426644,1733454645150,-150.0,8.478e-05,2]
[344426645,1733454645159,-150.0,8.479e-05,2]
[344426646,1733454645167,-150.0,8.487e-05,2]
[344426647,1733454645176,-150.0,8.487e-05,2]
[344426648,1733454645185,-150.0,8.487e-05,2]
[344426649,1733454645194,-150.0,8.488e-05,2]
[344426650,1733454645205,-150.0,8.489e-05,2]
[344426651,1733454645214,-150.0,8.489e-05,2]
[344426652,1733454645223,-1500.0,8.489e-05,2]
[344426653,1733454645232,-150.0,8.493e-05,2]
[344426654,1733454645241,-150.0,8.494e-05,2]
[344426655,1733454645250,-150.0,8.494e-05,2]
[344426656,1733454645259,-1500.0,8.495e-05,2]
[344426657,1733454645268,-150.0,8.497e-05,2]
[344426658,1733454645277,-1500.0,8.498e-05,2]
[344426659,1733454645286,-150.0,8.498e-05,2]
[344426660,1733454645296,-3000.0,8.5e-05,2]
[344426661,1733454645305,-150.0,8.501e-05,2]
[344426662,1733454645314,-150.0,8.502e-05,2]
[344426663,1733454645323,-1500.0,8.503e-05,2]
[344426664,1733454645332,-302.87,8.507e-05,2]
[344426665,1733454645340,-150.0,8.508e-05,2]
[344426666,1733454645349,-150.0,8.508e-05,2]
[344426667,1733454645358,-150.0,8.51e-05,2]
[344426668,1733454645368,-150.0,8.512e-05,2]
[344426669,1733454645377,-150.0,8.513e-05,2]
[344426670,1733454645387,-150.0,8.515e-05,2]
[344426671,1733454645396,-150.0,8.516e-05,2]
[344426672,1733454645405,-150.0,8.518e-05,2]
[344426673,1733454645415,-150.39416454,8.519e-05,2]
[344426674,1733454645425,-150.0,8.522e-05,2]
[344426675,1733454645434,-150.0,8.523e-05,2]
[344426676,1733454645443,-1500.0,8.523e-05,2]
[344426677,1733454645455,-150.0,8.527e-05,2]
[344426678,1733454645464,-150.0,8.527e-05,2]
[344426679,1733454645473,-150.0,8.53e-05,2]
[344426680,1733454645483,-150.0,8.53e-05,2]
[344426681,1733454645493,-150.0,8.532e-05,2]
[344426682,1733454645503,-150.0,8.535e-05,2]
[344426683,1733454645513,-150.0,8.536e-05,2]
[344426684,1733454645522,-1500.0,8.54e-05,2]
[344426685,1733454645532,-150.0,8.54e-05,2]
[344426686,1733454645542,-150.0,8.542e-05,2]
[344426687,1733454645551,-150.0,8.546e-05,2]
[344426688,1733454645560,-150.0,8.549e-05,2]
[344426689,1733454645569,-1500.0,8.551e-05,2]
[344426690,1733454645579,-150.0,8.551e-05,2]
[344426691,1733454645588,-150.0,8.554e-05,2]
[344426692,1733454645598,-150.0,8.554e-05,2]
[344426693,1733454645608,-150.0,8.555e-05,2]
[344426694,1733454645618,-150.0,8.555e-05,2]
[344426695,1733454645627,-150.0,8.558e-05,2]
[344426696,1733454645638,-150.0,8.56e-05,2]
[344426698,1733454645648,-1500.0,8.56e-05,2]
[344426700,1733454645657,-150.0,8.561e-05,2]
[344426701,1733454645666,-150.0,8.563e-05,2]
[344426702,1733454645676,-150.0,8.565e-05,2]
[344426703,1733454645685,-150.0,8.565e-05,2]
[344426704,1733454645694,-1500.0,8.567e-05,2]
[344426705,1733454645707,-1500.0,8.567e-05,2]
[344426706,1733454645717,-1500.0,8.567e-05,2]
[344426707,1733454645727,-150.0,8.57e-05,2]
[344426708,1733454645737,-150.0,8.571e-05,2]
[344426709,1733454645746,-150.0,8.572e-05,2]
[344426710,1733454645755,-150.0,8.573e-05,2]
[344426711,1733454645765,-420.43058247,8.573e-05,2]
[344426712,1733454645774,-150.0,8.577e-05,2]
[344426713,1733454645784,-150.0,8.578e-05,2]
[344426714,1733454645793,-1500.0,8.58e-05,2]
[344426715,1733454645802,-1500.0,8.58e-05,2]
[344426716,1733454645811,-1500.0,8.581e-05,2]
[344426717,1733454645821,-1500.0,8.582e-05,2]
[344426718,1733454645830,-150.0,8.582e-05,2]
[344426719,1733454645840,-150.0,8.583e-05,2]
[344426720,1733454645849,-350.24283882,8.584e-05,2]
[344426721,1733454645858,-150.0,8.587e-05,2]
[344426722,1733454645869,-150.0,8.587e-05,2]
[344426723,1733454645878,-150.0,8.592e-05,2]
[344426724,1733454645888,-150.0,8.598e-05,2]
[344426725,1733454645897,-1500.0,8.599e-05,2]
[344426726,1733454645907,-150.0,8.601e-05,2]
[344426727,1733454645917,-150.0,8.602e-05,2]
[344426728,1733454645926,-150.0,8.605e-05,2]
[344426729,1733454645935,-150.0,8.605e-05,2]
[344426730,1733454645945,-150.0,8.606e-05,2]
[344426731,1733454645956,-150.0,8.607e-05,2]
[344426732,1733454645965,-150.0,8.608e-05,2]
[344426733,1733454645975,-150.0,8.608e-05,2]
[344426734,1733454645984,-1500.0,8.609e-05,2]
[344426735,1733454645993,-1493.99996927,8.61e-05,2]
[344426736,1733454646003,-1500.0,8.612e-05,2]
[344426737,1733454646012,-1500.0,8.613e-05,2]
[344426738,1733454646022,-1500.0,8.614e-05,2]
[344426739,1733454646031,-150.0,8.615e-05,2]
[344426740,1733454646040,-1500.0,8.616e-05,2]
[344426741,1733454646049,-150.0,8.619e-05,2]
[344426742,1733454646059,-1500.0,8.621e-05,2]
[344426743,1733454646068,-150.0,8.622e-05,2]
[344426744,1733454646078,-150.0,8.622e-05,2]
[344426745,1733454646087,-1500.0,8.622e-05,2]
[344426746,1733454646096,-150.0,8.623e-05,2]
[344426747,1733454646105,-150.0,8.623e-05,2]
[344426748,1733454646115,-150.0,8.623e-05,2]
[344426749,1733454646124,-150.0,8.625e-05,2]
[344426750,1733454646133,-150.0,8.626e-05,2]
[344426751,1733454646143,-150.0,8.627e-05,2]
[344426752,1733454646152,-150.0,8.631e-05,2]
[344426753,1733454646161,-150.0,8.631e-05,2]
[344426754,1733454646171,-150.0,8.632e-05,2]
[344426755,1733454646180,-150.0,8.634e-05,2]
[344426756,1733454646190,-150.0,8.634e-05,2]
[344426757,1733454646203,-150.0,8.635e-05,2]
[344426758,1733454646212,-150.0,8.637e-05,2]
[344426759,1733454646222,-150.0,8.638e-05,2]
[344426760,1733454646231,-150.0,8.639e-05,2]
[344426761,1733454646240,-1014.47672102,8.639e-05,2]
[344426762,1733454646250,-150.0,8.644e-05,2]
[344426763,1733454646259,-1500.0,8.644e-05,2]
[344426764,1733454646268,-1500.0,8.644e-05,2]
[344426765,1733454646277,-150.0,8.644e-05,2]
[344426766,1733454646286,-1500.0,8.645e-05,2]
[344426767,1733454646295,-150.0,8.646e-05,2]
[344426768,1733454646304,-150.0,8.647e-05,2]
[344426770,1733454646313,-1500.0,8.647e-05,2]
[344426772,1733454646323,-150.0,8.652e-05,2]
[344426773,1733454646332,-150.0,8.654e-05,2]
[344426774,1733454646341,-150.0,8.656e-05,2]
[344426775,1733454646351,-150.0,8.657e-05,2]
[344426776,1733454646359,-150.0,8.662e-05,2]
[344426777,1733454646369,-150.0,8.666e-05,2]
[344426778,1733454646379,-150.0,8.667e-05,2]
[344426779,1733454646388,-150.0,8.67e-05,2]
[344426780,1733454646398,-150.0,8.673e-05,2]
[344426781,1733454646407,-150.0,8.675e-05,2]
[344426782,1733454646417,-150.25,8.676e-05,2]
[344426783,1733454646426,-484.19,8.676e-05,2]
[344426784,1733454646435,-150.0,8.678e-05,2]
[344426785,1733454646445,-150.0,8.679e-05,2]
[344426786,1733454646457,-150.0,8.679e-05,2]
[344426787,1733454646466,-156.15923439,8.679e-05,2]
[344426788,1733454646476,-150.0,8.68e-05,2]
[344426789,1733454646486,-150.0,8.686e-05,2]
[344426790,1733454646495,-150.0,8.686e-05,2]
[344426791,1733454646504,-150.0,8.694e-05,2]
[344426792,1733454646514,-150.0,8.694e-05,2]
[344426793,1733454646524,-150.0,8.694e-05,2]
[344426794,1733454646535,-150.0,8.698e-05,2]
[344426795,1733454646544,-1208.8797,8.7e-05,2]
[344426796,1733454646554,-2921.2624,8.7e-05,2]
[344426797,1733454646564,-200.0,8.74e-05,2]
[344426798,1733454646573,-24004.13,8.767e-05,2]
[344426799,1733454646582,-200.0,8.826e-05,3]
[344426800,1733454646591,-433.53,8.838e-05,2]
[344426801,1733454646600,-150.99,8.864e-05,2]
[344426802,1733454646609,-2120.16,8.864e-05,2]
[344426803,1733454646619,-302.87,8.877e-05,2]
[344426804,1733454646629,-420.43058247,8.96e-05,2]
[344426805,1733454646638,-4494.47802397,9e-05,2]
[344426806,1733454646647,-383.85,9.019e-05,2]
[344426807,1733454646657,-1500.0,9.022e-05,2]
[344426808,1733454646666,-329.22,9.123e-05,2]
[344426809,1733454646675,-150.25,9.132e-05,2]
[344426810,1733454646684,-484.19,9.132e-05,2]
[344426811,1733454646693,-420.43058247,9.15e-05,2]
[344426812,1733454646704,-560.26,9.237e-05,2]
[344426813,1733454646713,-1000.0,9.247e-05,2]
[344426814,1733454646724,-736.0,9.316e-05,2]
[344426815,1733454646734,-823.0,9.316e-05,2]
[344426816,1733454646744,-420.43058247,9.552e-05,2]
[344426817,1733454646753,-150.25,9.589e-05,2]
[344426818,1733454646762,-484.19,9.589e-05,2]
[344426819,1733454646771,-55680.0,9.6e-05,2]
[344426820,1733454646780,-433.53,9.642e-05,2]
[344426821,1733454646790,-420.43058247,9.793e-05,2]
[344426822,1733454646799,-1400.0,9.8e-05,3]
[344426823,1733454646808,-3000.0,9.876e-05,3]
[344426824,1733454646817,-8500.0,9.889e-05,2]
[344426825,1733454646826,-8500.0,9.898e-05,2]
[344426826,1733454646835,-8500.0,9.898e-05,2]
[344426827,1733454646844,-200.0,9.9e-05,3]
[344426828,1733454646853,-420.43058247,9.963e-05,2]
[344426829,1733454646862,-8500.0,9.981e-05,2]
[344426830,1733454646875,-102594.47846766,9.989e-05,2]
[344426831,1733454646884,-8500.0,9.99e-05,2]
[344426832,1733454646893,-150.120612,9.998e-05,3]
[344426833,1733454646903,-150.120612,9.998e-05,3]
[344426834,1733454646914,-150.120612,9.998e-05,3]
[344426835,1733454646923,-150.120612,9.998e-05,3]
[344426836,1733454646933,-150.120612,9.998e-05,3]
[344426837,1733454646942,-150.120612,9.998e-05,2]
[344426838,1733454646953,-150.120612,9.998e-05,2]
[344426839,1733454646962,-150.120612,9.998e-05,2]
[344426840,1733454646971,-150.120612,9.998e-05,2]
[344426841,1733454646980,-150.120612,9.998e-05,2]
[344426842,1733454646990,-8500.0,9.999e-05,2]
[344426843,1733454646999,-5737.84274837,9.999e-05,2]
[344426844,1733454647008,-2000.0,9.999e-05,2]
[344426845,1733454647017,-8500.0,9.999e-05,2]
[344426846,1733454647027,-150.0,0.0001,2]
[344426847,1733454647036,-150.0,0.0001,2]
[344426848,1733454647045,-150.0,0.0001,2]
[344426849,1733454647055,-150.0,0.0001,2]
[344426850,1733454647064,-150.0,0.0001,2]
[344426851,1733454647073,-567.0,0.0001,2]
[344426852,1733454647082,-1262.0,0.0001,2]
[344426853,1733454647091,-5000.0,0.0001,2]
[344426854,1733454647100,-1000.0,0.0001,2]
[344426855,1733454647110,-1000.0,0.0001,2]
[344426856,1733454647119,-1000.0,0.0001,2]
[344426857,1733454647128,-1000.0,0.0001,2]
[344426858,1733454647137,-1000.0,0.0001,2]
[344426859,1733454647147,-1000.0,0.0001,2]
[344426860,1733454647156,-1000.0,0.0001,2]
[344426861,1733454647166,-1000.0,0.0001,2]
[344426862,1733454647175,-1000.0,0.0001,2]
[344426863,1733454647185,-4594663.83497525,0.0001,2]
[344426864,1733454647194,-1000.0,0.0001,5]
[344426865,1733454647204,-3000.0,0.0001,2]
[344426866,1733454647213,-1000.0,0.0001,2]
[344426867,1733454647227,-1000.0,0.0001,2]
[344426868,1733454647239,-151.0,0.0001,2]
[344426869,1733454647248,-151.0,0.0001,2]
[344426870,1733454647258,-246588.0,0.0001,2]
[344426871,1733454647267,-1000.0,0.0001,2]
[344426872,1733454647276,-1000.0,0.0001,2]
[344426873,1733454647287,-1000.0,0.0001,2]
[344426874,1733454647296,-1000.0,0.0001,2]
[344426875,1733454647306,-1000.0,0.0001,2]
[344426876,1733454647315,-1000.0,0.0001,2]
[344426877,1733454647325,-1000.0,0.0001,2]
[344426878,1733454647335,-1000.0,0.0001,2]
[344426879,1733454647344,-1000.0,0.0001,2]
[344426880,1733454647354,-1000.0,0.0001,2]
[344426881,1733454647364,-1000.0,0.0001,2]
[344426882,1733454647374,-1000.0,0.0001,2]
[344426883,1733454647384,-1000.0,0.0001,2]
[344426884,1733454647394,-1000.0,0.0001,2]
[344426885,1733454647403,-1000.0,0.0001,2]
[344426886,1733454647413,-1000.0,0.0001,2]
[344426887,1733454647422,-1000.0,0.0001,2]
[344426888,1733454647432,-1000.0,0.0001,2]
[344426889,1733454647441,-1000.0,0.0001,2]
[344426890,1733454647452,-1000.0,0.0001,2]
[344426891,1733454647463,-1000.0,0.0001,2]
[344426892,1733454647472,-1000.0,0.0001,2]
[344426893,1733454647482,-1000.0,0.0001,2]
[344426894,1733454647491,-1000.0,0.0001,2]
[344426895,1733454647500,-1000.0,0.0001,2]
[344426896,1733454647510,-1000.0,0.0001,2]
[344426897,1733454647519,-1000.0,0.0001,2]
[344426898,1733454647528,-1000.0,0.0001,2]
[344426899,1733454647538,-1000.0,0.0001,2]
[344426900,1733454647547,-1000.0,0.0001,2]
[344426901,1733454647557,-1000.0,0.0001,2]
[344426902,1733454647567,-1000.0,0.0001,2]
[344426903,1733454647576,-1000.0,0.0001,2]
[344426904,1733454647585,-1000.0,0.0001,2]
[344426905,1733454647595,-1000.0,0.0001,2]
[344426906,1733454647604,-150.97940199,0.0001,2]
[344426907,1733454647614,-317800.82190319,0.0001,2]
[344426908,1733454647623,-2014.65191679,0.0001,2]
[344426909,1733454647632,-2004.0,0.0001,2]
[344426910,1733454647642,-150.0,0.0001,2]
[344426911,1733454647651,-631.0,0.0001,2]
[344426912,1733454647661,-1893.0,0.0001,2]
[344426913,1733454647670,-563.0,0.0001,2]
[344426914,1733454647680,-1252.0,0.0001,2]
[344426915,1733454647689,-3761.0,0.0001,2]
[344426916,1733454647699,-816.0,0.0001,2]
[344426917,1733454647712,-3529.0,0.0001,2]
[344426918,1733454647722,-535.0,0.0001,2]
[344426919,1733454647732,-973.0,0.0001,2]
[344426920,1733454647742,-454.69984501,0.0001,2]
[344426921,1733454647752,-3000.0,0.0001,2]
[344426922,1733454647762,-3000.0,0.0001,2]
[344426923,1733454647772,-3000.0,0.0001,2]